{"text_format":"1","workbook":"xlsx","n_sheets":3,"sheets":["БД","Показатели","Упорядоченное_расположение"],"not_rendered":{"charts":0,"images":0,"macros":1,"external_links":0,"defined_names":4,"comments":0,"pivot_tables":0},"unopened":[],"bounds":{"document_bytes":16777216,"sheet_cells":100000,"rows_first":2000,"rows_last":500,"rows_between":2000,"halvings":0,"cell_chars":16384,"cell_head_chars":4096},"cells_cut":0,"cells_raw":0,"read":"whole","date_system":"1900"}

{"sheet":"БД","index":0,"n_rows":81,"n_cols":4,"rows_kept":81,"cut":false,"hidden":false,"merged":[]}
[]
[null,"Код","Холдинг","Организация"]
[null,200,"Холдинг 1","Организация 1"]
[null,2202,"Холдинг 1","Организация 2"]
[null,2202,"Холдинг 1","Организация 3"]
[null,2203,"Холдинг 1","Организация 4"]
[null,2204,"Холдинг 1","Организация 5"]
[null,2205,"Холдинг 1","Организация 6"]
[null,2206,"Холдинг 1","Организация 7"]
[null,2207,"Холдинг 1","Организация 8"]
[null,2208,"Холдинг 1","Организация 9"]
[null,2209,"Холдинг 1","Организация 10"]
[null,2220,"Холдинг 1","Организация 11"]
[null,2222,"Холдинг 1","Организация 12"]
[null,2223,"Холдинг 1","Организация 13"]
[null,2224,"Холдинг 1","Организация 14"]
[null,2226,"Холдинг 1","Организация 15"]
[null,2227,"Холдинг 1","Организация 16"]
[null,2222,"Холдинг 1","Организация 17"]
[null,2222,"Холдинг 1","Организация 18"]
[null,2223,"Холдинг 1","Организация 19"]
[null,2229,"Холдинг 1","Организация 20"]
[null,2230,"Холдинг 1","Организация 21"]
[null,2232,"Холдинг 1","Организация 22"]
[null,2233,"Холдинг 1","Организация 23"]
[null,2234,"Холдинг 1","Организация 24"]
[null,2235,"Холдинг 1","Организация 25"]
[null,2237,"Холдинг 1","Организация 26"]
[null,2238,"Холдинг 1","Организация 27"]
[null,2239,"Холдинг 1","Организация 28"]
[null,2240,"Холдинг 1","Организация 29"]
[null,2242,"Холдинг 1","Организация 30"]
[null,2245,"Холдинг 1","Организация 31"]
[null,2246,"Холдинг 1","Организация 32"]
[null,2248,"Холдинг 1","Организация 33"]
[null,2249,"Холдинг 1","Организация 34"]
[null,2252,"Холдинг 1","Организация 35"]
[null,2252,"Холдинг 1","Организация 36"]
[null,2253,"Холдинг 1","Организация 37"]
[null,2254,"Холдинг 1","Организация 38"]
[null,2255,"Холдинг 1","Организация 39"]
[null,2256,"Холдинг 1","Организация 40"]
[null,2266,"Холдинг 1","Организация 41"]
[null,2269,"Холдинг 1","Организация 42"]
[null,2270,"Холдинг 1","Организация 43"]
[null,2272,"Холдинг 1","Организация 44"]
[null,2274,"Холдинг 1","Организация 45"]
[null,2276,"Холдинг 1","Организация 46"]
[null,2277,"Холдинг 1","Организация 47"]
[null,2278,"Холдинг 1","Организация 48"]
[null,2279,"Холдинг 1","Организация 49"]
[null,2280,"Холдинг 1","Организация 50"]
[null,2283,"Холдинг 1","Организация 51"]
[null,2284,"Холдинг 1","Организация 52"]
[null,2297,"Холдинг 1","Организация 53"]
[null,2299,"Холдинг 1","Организация 54"]
[null,9200,"Холдинг 2","Организация 55"]
[null,9202,"Холдинг 2","Организация 56"]
[null,9202,"Холдинг 2","Организация 57"]
[null,9203,"Холдинг 2","Организация 58"]
[null,9204,"Холдинг 2","Организация 59"]
[null,9205,"Холдинг 2","Организация 60"]
[null,9206,"Холдинг 2","Организация 61"]
[null,9207,"Холдинг 2","Организация 62"]
[null,9208,"Холдинг 2","Организация 63"]
[null,9209,"Холдинг 2","Организация 64"]
[null,9220,"Холдинг 2","Организация 65"]
[null,9222,"Холдинг 2","Организация 66"]
[null,"0200","Холдинг 3","Организация 67"]
[null,202,"Холдинг 3","Организация 68"]
[null,"0202","Холдинг 3","Организация 69"]
[null,"0203","Холдинг 3","Организация 70"]
[null,"0204","Холдинг 3","Организация 71"]
[null,"0205","Холдинг 3","Организация 72"]
[null,"0206","Холдинг 3","Организация 73"]
[null,"0207","Холдинг 3","Организация 74"]
[null,"0208","Холдинг 3","Организация 75"]
[null,"0209","Холдинг 3","Организация 76"]
[null,220,"Холдинг 3","Организация 77"]
[null,222,"Холдинг 3","Организация 78"]
[null,224,"Холдинг 3","Организация 79"]

{"sheet":"Показатели","index":1,"n_rows":63,"n_cols":3,"rows_kept":63,"cut":false,"hidden":false,"merged":[[0,0,0,2]]}
["Показатели по холдингу №1"]
["Наименование организации","Сумма","Количество"]
["Организация 1",828,3]
["Организация 1",2323,4]
["Организация 2",560,5]
["Организация 3",316,8]
["Организация 8",2323,23]
["Организация 4",874,3]
["Организация 5",698,3]
["Организация 35",323,2]
["Организация 6",422,2]
["Организация 7",970,10]
["Организация 8",510,2]
["Организация 9",873,6]
["Организация 10",338,1]
["Организация 11",738,1]
["Организация 12",197,6]
["Организация 13",937,6]
["Организация 25",323,345]
["Организация 14",956,5]
["Организация 15",189,9]
["Организация 16",535,8]
["Организация 17",256,3]
["Организация 18",312,3]
["Организация 19",651,5]
["Организация 2",323,4]
["Организация 20",319,8]
["Организация 21",195,10]
["Организация 22",657,8]
["Организация 23",286,2]
["Организация 24",667,10]
["Организация 25",1000,6]
["Организация 26",947,2]
["Организация 27",354,9]
["Организация 28",657,8]
["Организация 1",33,4]
["Организация 29",965,1]
["Организация 30",112,7]
["Организация 31",406,10]
["Организация 32",309,9]
["Организация 33",352,5]
["Организация 34",222,2]
["Организация 35",555,7]
["Организация 36",107,6]
["Организация 37",896,7]
["Организация 38",632,8]
["Организация 39",579,8]
["Организация 40",720,1]
["Организация 41",269,3]
["Организация 42",177,9]
["Организация 43",136,10]
["Организация 10",444,2]
["Организация 44",451,9]
["Организация 45",241,1]
["Организация 46",860,2]
["Организация 47",438,9]
["Организация 48",255,6]
["Организация 49",638,9]
["Организация 50",737,1]
["Организация 51",142,5]
["Организация 52",403,9]
["Организация 53",209,10]
["Организация 54",744,8]

{"sheet":"Упорядоченное_расположение","index":2,"n_rows":81,"n_cols":10,"rows_kept":81,"cut":false,"hidden":false,"merged":[]}
[]
[null,"Код ","Организация","Сроки\nпредоставления","Сумма","Количество",null,"Выберите холдинг",null,"Холдинг 1"]
[null,{"$f":"IF(COUNTA(B$2:B2)>COUNTIF(INDEX(База,,2),$H$3),\"\",INDEX(База,MATCH($H$3,INDEX(База,,2),)+COUNTA(B$2:B2)-1,COUNTA($B2:B2)))","v":9200},{"$f":"IF(COUNTA(C$2:C2)>COUNTIF(INDEX(База,,2),$H$3),\"\",INDEX(База,MATCH($H$3,INDEX(База,,2),)+COUNTA(C$2:C2)-1,COUNTA($B2:C2)))","v":"Холдинг 2"},{"$f":"IF(COUNTA(D$2:D2)>COUNTIF(INDEX(База,,2),$H$3),\"\",INDEX(База,MATCH($H$3,INDEX(База,,2),)+COUNTA(D$2:D2)-1,COUNTA($B2:D2)))","v":"Организация 55"},{"$f":"SUMIF(Показатели!$A$3:$A$63,Упорядоченное_расположение!D3,Показатели!$B$3:$B$63)","v":0},{"$f":"COUNTIF(Показатели!$A$3:$A$63,Упорядоченное_расположение!D3)","v":0},null,"Холдинг 2",null,"Холдинг 2"]
[null,{"$f":"IF(COUNTA(B$2:B3)>COUNTIF(INDEX(База,,2),$H$3),\"\",INDEX(База,MATCH($H$3,INDEX(База,,2),)+COUNTA(B$2:B3)-1,COUNTA($B3:B3)))","v":9202},{"$f":"IF(COUNTA(C$2:C3)>COUNTIF(INDEX(База,,2),$H$3),\"\",INDEX(База,MATCH($H$3,INDEX(База,,2),)+COUNTA(C$2:C3)-1,COUNTA($B3:C3)))","v":"Холдинг 2"},{"$f":"IF(COUNTA(D$2:D3)>COUNTIF(INDEX(База,,2),$H$3),\"\",INDEX(База,MATCH($H$3,INDEX(База,,2),)+COUNTA(D$2:D3)-1,COUNTA($B3:D3)))","v":"Организация 56"},{"$f":"SUMIF(Показатели!$A$3:$A$63,Упорядоченное_расположение!D4,Показатели!$B$3:$B$63)","v":0},{"$f":"COUNTIF(Показатели!$A$3:$A$63,Упорядоченное_расположение!D4)","v":0},null,null,null,"Холдинг 3"]
[null,{"$f":"IF(COUNTA(B$2:B4)>COUNTIF(INDEX(База,,2),$H$3),\"\",INDEX(База,MATCH($H$3,INDEX(База,,2),)+COUNTA(B$2:B4)-1,COUNTA($B4:B4)))","v":9202},{"$f":"IF(COUNTA(C$2:C4)>COUNTIF(INDEX(База,,2),$H$3),\"\",INDEX(База,MATCH($H$3,INDEX(База,,2),)+COUNTA(C$2:C4)-1,COUNTA($B4:C4)))","v":"Холдинг 2"},{"$f":"IF(COUNTA(D$2:D4)>COUNTIF(INDEX(База,,2),$H$3),\"\",INDEX(База,MATCH($H$3,INDEX(База,,2),)+COUNTA(D$2:D4)-1,COUNTA($B4:D4)))","v":"Организация 57"},{"$f":"SUMIF(Показатели!$A$3:$A$63,Упорядоченное_расположение!D5,Показатели!$B$3:$B$63)","v":0},{"$f":"COUNTIF(Показатели!$A$3:$A$63,Упорядоченное_расположение!D5)","v":0}]
[null,{"$f":"IF(COUNTA(B$2:B5)>COUNTIF(INDEX(База,,2),$H$3),\"\",INDEX(База,MATCH($H$3,INDEX(База,,2),)+COUNTA(B$2:B5)-1,COUNTA($B5:B5)))","v":9203},{"$f":"IF(COUNTA(C$2:C5)>COUNTIF(INDEX(База,,2),$H$3),\"\",INDEX(База,MATCH($H$3,INDEX(База,,2),)+COUNTA(C$2:C5)-1,COUNTA($B5:C5)))","v":"Холдинг 2"},{"$f":"IF(COUNTA(D$2:D5)>COUNTIF(INDEX(База,,2),$H$3),\"\",INDEX(База,MATCH($H$3,INDEX(База,,2),)+COUNTA(D$2:D5)-1,COUNTA($B5:D5)))","v":"Организация 58"},{"$f":"SUMIF(Показатели!$A$3:$A$63,Упорядоченное_расположение!D6,Показатели!$B$3:$B$63)","v":0},{"$f":"COUNTIF(Показатели!$A$3:$A$63,Упорядоченное_расположение!D6)","v":0}]
[null,{"$f":"IF(COUNTA(B$2:B6)>COUNTIF(INDEX(База,,2),$H$3),\"\",INDEX(База,MATCH($H$3,INDEX(База,,2),)+COUNTA(B$2:B6)-1,COUNTA($B6:B6)))","v":9204},{"$f":"IF(COUNTA(C$2:C6)>COUNTIF(INDEX(База,,2),$H$3),\"\",INDEX(База,MATCH($H$3,INDEX(База,,2),)+COUNTA(C$2:C6)-1,COUNTA($B6:C6)))","v":"Холдинг 2"},{"$f":"IF(COUNTA(D$2:D6)>COUNTIF(INDEX(База,,2),$H$3),\"\",INDEX(База,MATCH($H$3,INDEX(База,,2),)+COUNTA(D$2:D6)-1,COUNTA($B6:D6)))","v":"Организация 59"},{"$f":"SUMIF(Показатели!$A$3:$A$63,Упорядоченное_расположение!D7,Показатели!$B$3:$B$63)","v":0},{"$f":"COUNTIF(Показатели!$A$3:$A$63,Упорядоченное_расположение!D7)","v":0}]
[null,{"$f":"IF(COUNTA(B$2:B7)>COUNTIF(INDEX(База,,2),$H$3),\"\",INDEX(База,MATCH($H$3,INDEX(База,,2),)+COUNTA(B$2:B7)-1,COUNTA($B7:B7)))","v":9205},{"$f":"IF(COUNTA(C$2:C7)>COUNTIF(INDEX(База,,2),$H$3),\"\",INDEX(База,MATCH($H$3,INDEX(База,,2),)+COUNTA(C$2:C7)-1,COUNTA($B7:C7)))","v":"Холдинг 2"},{"$f":"IF(COUNTA(D$2:D7)>COUNTIF(INDEX(База,,2),$H$3),\"\",INDEX(База,MATCH($H$3,INDEX(База,,2),)+COUNTA(D$2:D7)-1,COUNTA($B7:D7)))","v":"Организация 60"},{"$f":"SUMIF(Показатели!$A$3:$A$63,Упорядоченное_расположение!D8,Показатели!$B$3:$B$63)","v":0},{"$f":"COUNTIF(Показатели!$A$3:$A$63,Упорядоченное_расположение!D8)","v":0}]
[null,{"$f":"IF(COUNTA(B$2:B8)>COUNTIF(INDEX(База,,2),$H$3),\"\",INDEX(База,MATCH($H$3,INDEX(База,,2),)+COUNTA(B$2:B8)-1,COUNTA($B8:B8)))","v":9206},{"$f":"IF(COUNTA(C$2:C8)>COUNTIF(INDEX(База,,2),$H$3),\"\",INDEX(База,MATCH($H$3,INDEX(База,,2),)+COUNTA(C$2:C8)-1,COUNTA($B8:C8)))","v":"Холдинг 2"},{"$f":"IF(COUNTA(D$2:D8)>COUNTIF(INDEX(База,,2),$H$3),\"\",INDEX(База,MATCH($H$3,INDEX(База,,2),)+COUNTA(D$2:D8)-1,COUNTA($B8:D8)))","v":"Организация 61"},{"$f":"SUMIF(Показатели!$A$3:$A$63,Упорядоченное_расположение!D9,Показатели!$B$3:$B$63)","v":0},{"$f":"COUNTIF(Показатели!$A$3:$A$63,Упорядоченное_расположение!D9)","v":0}]
[null,{"$f":"IF(COUNTA(B$2:B9)>COUNTIF(INDEX(База,,2),$H$3),\"\",INDEX(База,MATCH($H$3,INDEX(База,,2),)+COUNTA(B$2:B9)-1,COUNTA($B9:B9)))","v":9207},{"$f":"IF(COUNTA(C$2:C9)>COUNTIF(INDEX(База,,2),$H$3),\"\",INDEX(База,MATCH($H$3,INDEX(База,,2),)+COUNTA(C$2:C9)-1,COUNTA($B9:C9)))","v":"Холдинг 2"},{"$f":"IF(COUNTA(D$2:D9)>COUNTIF(INDEX(База,,2),$H$3),\"\",INDEX(База,MATCH($H$3,INDEX(База,,2),)+COUNTA(D$2:D9)-1,COUNTA($B9:D9)))","v":"Организация 62"},{"$f":"SUMIF(Показатели!$A$3:$A$63,Упорядоченное_расположение!D10,Показатели!$B$3:$B$63)","v":0},{"$f":"COUNTIF(Показатели!$A$3:$A$63,Упорядоченное_расположение!D10)","v":0}]
[null,{"$f":"IF(COUNTA(B$2:B10)>COUNTIF(INDEX(База,,2),$H$3),\"\",INDEX(База,MATCH($H$3,INDEX(База,,2),)+COUNTA(B$2:B10)-1,COUNTA($B10:B10)))","v":9208},{"$f":"IF(COUNTA(C$2:C10)>COUNTIF(INDEX(База,,2),$H$3),\"\",INDEX(База,MATCH($H$3,INDEX(База,,2),)+COUNTA(C$2:C10)-1,COUNTA($B10:C10)))","v":"Холдинг 2"},{"$f":"IF(COUNTA(D$2:D10)>COUNTIF(INDEX(База,,2),$H$3),\"\",INDEX(База,MATCH($H$3,INDEX(База,,2),)+COUNTA(D$2:D10)-1,COUNTA($B10:D10)))","v":"Организация 63"},{"$f":"SUMIF(Показатели!$A$3:$A$63,Упорядоченное_расположение!D11,Показатели!$B$3:$B$63)","v":0},{"$f":"COUNTIF(Показатели!$A$3:$A$63,Упорядоченное_расположение!D11)","v":0}]
[null,{"$f":"IF(COUNTA(B$2:B11)>COUNTIF(INDEX(База,,2),$H$3),\"\",INDEX(База,MATCH($H$3,INDEX(База,,2),)+COUNTA(B$2:B11)-1,COUNTA($B11:B11)))","v":9209},{"$f":"IF(COUNTA(C$2:C11)>COUNTIF(INDEX(База,,2),$H$3),\"\",INDEX(База,MATCH($H$3,INDEX(База,,2),)+COUNTA(C$2:C11)-1,COUNTA($B11:C11)))","v":"Холдинг 2"},{"$f":"IF(COUNTA(D$2:D11)>COUNTIF(INDEX(База,,2),$H$3),\"\",INDEX(База,MATCH($H$3,INDEX(База,,2),)+COUNTA(D$2:D11)-1,COUNTA($B11:D11)))","v":"Организация 64"},{"$f":"SUMIF(Показатели!$A$3:$A$63,Упорядоченное_расположение!D12,Показатели!$B$3:$B$63)","v":0},{"$f":"COUNTIF(Показатели!$A$3:$A$63,Упорядоченное_расположение!D12)","v":0}]
[null,{"$f":"IF(COUNTA(B$2:B12)>COUNTIF(INDEX(База,,2),$H$3),\"\",INDEX(База,MATCH($H$3,INDEX(База,,2),)+COUNTA(B$2:B12)-1,COUNTA($B12:B12)))","v":9220},{"$f":"IF(COUNTA(C$2:C12)>COUNTIF(INDEX(База,,2),$H$3),\"\",INDEX(База,MATCH($H$3,INDEX(База,,2),)+COUNTA(C$2:C12)-1,COUNTA($B12:C12)))","v":"Холдинг 2"},{"$f":"IF(COUNTA(D$2:D12)>COUNTIF(INDEX(База,,2),$H$3),\"\",INDEX(База,MATCH($H$3,INDEX(База,,2),)+COUNTA(D$2:D12)-1,COUNTA($B12:D12)))","v":"Организация 65"},{"$f":"SUMIF(Показатели!$A$3:$A$63,Упорядоченное_расположение!D13,Показатели!$B$3:$B$63)","v":0},{"$f":"COUNTIF(Показатели!$A$3:$A$63,Упорядоченное_расположение!D13)","v":0}]
[null,{"$f":"IF(COUNTA(B$2:B13)>COUNTIF(INDEX(База,,2),$H$3),\"\",INDEX(База,MATCH($H$3,INDEX(База,,2),)+COUNTA(B$2:B13)-1,COUNTA($B13:B13)))","v":9222},{"$f":"IF(COUNTA(C$2:C13)>COUNTIF(INDEX(База,,2),$H$3),\"\",INDEX(База,MATCH($H$3,INDEX(База,,2),)+COUNTA(C$2:C13)-1,COUNTA($B13:C13)))","v":"Холдинг 2"},{"$f":"IF(COUNTA(D$2:D13)>COUNTIF(INDEX(База,,2),$H$3),\"\",INDEX(База,MATCH($H$3,INDEX(База,,2),)+COUNTA(D$2:D13)-1,COUNTA($B13:D13)))","v":"Организация 66"},{"$f":"SUMIF(Показатели!$A$3:$A$63,Упорядоченное_расположение!D14,Показатели!$B$3:$B$63)","v":0},{"$f":"COUNTIF(Показатели!$A$3:$A$63,Упорядоченное_расположение!D14)","v":0}]
[null,{"$f":"IF(COUNTA(B$2:B14)>COUNTIF(INDEX(База,,2),$H$3),\"\",INDEX(База,MATCH($H$3,INDEX(База,,2),)+COUNTA(B$2:B14)-1,COUNTA($B14:B14)))","v":""},{"$f":"IF(COUNTA(C$2:C14)>COUNTIF(INDEX(База,,2),$H$3),\"\",INDEX(База,MATCH($H$3,INDEX(База,,2),)+COUNTA(C$2:C14)-1,COUNTA($B14:C14)))","v":""},{"$f":"IF(COUNTA(D$2:D14)>COUNTIF(INDEX(База,,2),$H$3),\"\",INDEX(База,MATCH($H$3,INDEX(База,,2),)+COUNTA(D$2:D14)-1,COUNTA($B14:D14)))","v":""},{"$f":"SUMIF(Показатели!$A$3:$A$63,Упорядоченное_расположение!D15,Показатели!$B$3:$B$63)","v":0},{"$f":"COUNTIF(Показатели!$A$3:$A$63,Упорядоченное_расположение!D15)","v":0}]
[null,{"$f":"IF(COUNTA(B$2:B15)>COUNTIF(INDEX(База,,2),$H$3),\"\",INDEX(База,MATCH($H$3,INDEX(База,,2),)+COUNTA(B$2:B15)-1,COUNTA($B15:B15)))","v":""},{"$f":"IF(COUNTA(C$2:C15)>COUNTIF(INDEX(База,,2),$H$3),\"\",INDEX(База,MATCH($H$3,INDEX(База,,2),)+COUNTA(C$2:C15)-1,COUNTA($B15:C15)))","v":""},{"$f":"IF(COUNTA(D$2:D15)>COUNTIF(INDEX(База,,2),$H$3),\"\",INDEX(База,MATCH($H$3,INDEX(База,,2),)+COUNTA(D$2:D15)-1,COUNTA($B15:D15)))","v":""},{"$f":"SUMIF(Показатели!$A$3:$A$63,Упорядоченное_расположение!D16,Показатели!$B$3:$B$63)","v":0},{"$f":"COUNTIF(Показатели!$A$3:$A$63,Упорядоченное_расположение!D16)","v":0}]
[null,{"$f":"IF(COUNTA(B$2:B16)>COUNTIF(INDEX(База,,2),$H$3),\"\",INDEX(База,MATCH($H$3,INDEX(База,,2),)+COUNTA(B$2:B16)-1,COUNTA($B16:B16)))","v":""},{"$f":"IF(COUNTA(C$2:C16)>COUNTIF(INDEX(База,,2),$H$3),\"\",INDEX(База,MATCH($H$3,INDEX(База,,2),)+COUNTA(C$2:C16)-1,COUNTA($B16:C16)))","v":""},{"$f":"IF(COUNTA(D$2:D16)>COUNTIF(INDEX(База,,2),$H$3),\"\",INDEX(База,MATCH($H$3,INDEX(База,,2),)+COUNTA(D$2:D16)-1,COUNTA($B16:D16)))","v":""},{"$f":"SUMIF(Показатели!$A$3:$A$63,Упорядоченное_расположение!D17,Показатели!$B$3:$B$63)","v":0},{"$f":"COUNTIF(Показатели!$A$3:$A$63,Упорядоченное_расположение!D17)","v":0}]
[null,{"$f":"IF(COUNTA(B$2:B17)>COUNTIF(INDEX(База,,2),$H$3),\"\",INDEX(База,MATCH($H$3,INDEX(База,,2),)+COUNTA(B$2:B17)-1,COUNTA($B17:B17)))","v":""},{"$f":"IF(COUNTA(C$2:C17)>COUNTIF(INDEX(База,,2),$H$3),\"\",INDEX(База,MATCH($H$3,INDEX(База,,2),)+COUNTA(C$2:C17)-1,COUNTA($B17:C17)))","v":""},{"$f":"IF(COUNTA(D$2:D17)>COUNTIF(INDEX(База,,2),$H$3),\"\",INDEX(База,MATCH($H$3,INDEX(База,,2),)+COUNTA(D$2:D17)-1,COUNTA($B17:D17)))","v":""},{"$f":"SUMIF(Показатели!$A$3:$A$63,Упорядоченное_расположение!D18,Показатели!$B$3:$B$63)","v":0},{"$f":"COUNTIF(Показатели!$A$3:$A$63,Упорядоченное_расположение!D18)","v":0}]
[null,{"$f":"IF(COUNTA(B$2:B18)>COUNTIF(INDEX(База,,2),$H$3),\"\",INDEX(База,MATCH($H$3,INDEX(База,,2),)+COUNTA(B$2:B18)-1,COUNTA($B18:B18)))","v":""},{"$f":"IF(COUNTA(C$2:C18)>COUNTIF(INDEX(База,,2),$H$3),\"\",INDEX(База,MATCH($H$3,INDEX(База,,2),)+COUNTA(C$2:C18)-1,COUNTA($B18:C18)))","v":""},{"$f":"IF(COUNTA(D$2:D18)>COUNTIF(INDEX(База,,2),$H$3),\"\",INDEX(База,MATCH($H$3,INDEX(База,,2),)+COUNTA(D$2:D18)-1,COUNTA($B18:D18)))","v":""},{"$f":"SUMIF(Показатели!$A$3:$A$63,Упорядоченное_расположение!D19,Показатели!$B$3:$B$63)","v":0},{"$f":"COUNTIF(Показатели!$A$3:$A$63,Упорядоченное_расположение!D19)","v":0}]
[null,{"$f":"IF(COUNTA(B$2:B19)>COUNTIF(INDEX(База,,2),$H$3),\"\",INDEX(База,MATCH($H$3,INDEX(База,,2),)+COUNTA(B$2:B19)-1,COUNTA($B19:B19)))","v":""},{"$f":"IF(COUNTA(C$2:C19)>COUNTIF(INDEX(База,,2),$H$3),\"\",INDEX(База,MATCH($H$3,INDEX(База,,2),)+COUNTA(C$2:C19)-1,COUNTA($B19:C19)))","v":""},{"$f":"IF(COUNTA(D$2:D19)>COUNTIF(INDEX(База,,2),$H$3),\"\",INDEX(База,MATCH($H$3,INDEX(База,,2),)+COUNTA(D$2:D19)-1,COUNTA($B19:D19)))","v":""},{"$f":"SUMIF(Показатели!$A$3:$A$63,Упорядоченное_расположение!D20,Показатели!$B$3:$B$63)","v":0},{"$f":"COUNTIF(Показатели!$A$3:$A$63,Упорядоченное_расположение!D20)","v":0}]
[null,{"$f":"IF(COUNTA(B$2:B20)>COUNTIF(INDEX(База,,2),$H$3),\"\",INDEX(База,MATCH($H$3,INDEX(База,,2),)+COUNTA(B$2:B20)-1,COUNTA($B20:B20)))","v":""},{"$f":"IF(COUNTA(C$2:C20)>COUNTIF(INDEX(База,,2),$H$3),\"\",INDEX(База,MATCH($H$3,INDEX(База,,2),)+COUNTA(C$2:C20)-1,COUNTA($B20:C20)))","v":""},{"$f":"IF(COUNTA(D$2:D20)>COUNTIF(INDEX(База,,2),$H$3),\"\",INDEX(База,MATCH($H$3,INDEX(База,,2),)+COUNTA(D$2:D20)-1,COUNTA($B20:D20)))","v":""},{"$f":"SUMIF(Показатели!$A$3:$A$63,Упорядоченное_расположение!D21,Показатели!$B$3:$B$63)","v":0},{"$f":"COUNTIF(Показатели!$A$3:$A$63,Упорядоченное_расположение!D21)","v":0}]
[null,{"$f":"IF(COUNTA(B$2:B21)>COUNTIF(INDEX(База,,2),$H$3),\"\",INDEX(База,MATCH($H$3,INDEX(База,,2),)+COUNTA(B$2:B21)-1,COUNTA($B21:B21)))","v":""},{"$f":"IF(COUNTA(C$2:C21)>COUNTIF(INDEX(База,,2),$H$3),\"\",INDEX(База,MATCH($H$3,INDEX(База,,2),)+COUNTA(C$2:C21)-1,COUNTA($B21:C21)))","v":""},{"$f":"IF(COUNTA(D$2:D21)>COUNTIF(INDEX(База,,2),$H$3),\"\",INDEX(База,MATCH($H$3,INDEX(База,,2),)+COUNTA(D$2:D21)-1,COUNTA($B21:D21)))","v":""},{"$f":"SUMIF(Показатели!$A$3:$A$63,Упорядоченное_расположение!D22,Показатели!$B$3:$B$63)","v":0},{"$f":"COUNTIF(Показатели!$A$3:$A$63,Упорядоченное_расположение!D22)","v":0}]
[null,{"$f":"IF(COUNTA(B$2:B22)>COUNTIF(INDEX(База,,2),$H$3),\"\",INDEX(База,MATCH($H$3,INDEX(База,,2),)+COUNTA(B$2:B22)-1,COUNTA($B22:B22)))","v":""},{"$f":"IF(COUNTA(C$2:C22)>COUNTIF(INDEX(База,,2),$H$3),\"\",INDEX(База,MATCH($H$3,INDEX(База,,2),)+COUNTA(C$2:C22)-1,COUNTA($B22:C22)))","v":""},{"$f":"IF(COUNTA(D$2:D22)>COUNTIF(INDEX(База,,2),$H$3),\"\",INDEX(База,MATCH($H$3,INDEX(База,,2),)+COUNTA(D$2:D22)-1,COUNTA($B22:D22)))","v":""},{"$f":"SUMIF(Показатели!$A$3:$A$63,Упорядоченное_расположение!D23,Показатели!$B$3:$B$63)","v":0},{"$f":"COUNTIF(Показатели!$A$3:$A$63,Упорядоченное_расположение!D23)","v":0}]
[null,{"$f":"IF(COUNTA(B$2:B23)>COUNTIF(INDEX(База,,2),$H$3),\"\",INDEX(База,MATCH($H$3,INDEX(База,,2),)+COUNTA(B$2:B23)-1,COUNTA($B23:B23)))","v":""},{"$f":"IF(COUNTA(C$2:C23)>COUNTIF(INDEX(База,,2),$H$3),\"\",INDEX(База,MATCH($H$3,INDEX(База,,2),)+COUNTA(C$2:C23)-1,COUNTA($B23:C23)))","v":""},{"$f":"IF(COUNTA(D$2:D23)>COUNTIF(INDEX(База,,2),$H$3),\"\",INDEX(База,MATCH($H$3,INDEX(База,,2),)+COUNTA(D$2:D23)-1,COUNTA($B23:D23)))","v":""},{"$f":"SUMIF(Показатели!$A$3:$A$63,Упорядоченное_расположение!D24,Показатели!$B$3:$B$63)","v":0},{"$f":"COUNTIF(Показатели!$A$3:$A$63,Упорядоченное_расположение!D24)","v":0}]
[null,{"$f":"IF(COUNTA(B$2:B24)>COUNTIF(INDEX(База,,2),$H$3),\"\",INDEX(База,MATCH($H$3,INDEX(База,,2),)+COUNTA(B$2:B24)-1,COUNTA($B24:B24)))","v":""},{"$f":"IF(COUNTA(C$2:C24)>COUNTIF(INDEX(База,,2),$H$3),\"\",INDEX(База,MATCH($H$3,INDEX(База,,2),)+COUNTA(C$2:C24)-1,COUNTA($B24:C24)))","v":""},{"$f":"IF(COUNTA(D$2:D24)>COUNTIF(INDEX(База,,2),$H$3),\"\",INDEX(База,MATCH($H$3,INDEX(База,,2),)+COUNTA(D$2:D24)-1,COUNTA($B24:D24)))","v":""},{"$f":"SUMIF(Показатели!$A$3:$A$63,Упорядоченное_расположение!D25,Показатели!$B$3:$B$63)","v":0},{"$f":"COUNTIF(Показатели!$A$3:$A$63,Упорядоченное_расположение!D25)","v":0}]
[null,{"$f":"IF(COUNTA(B$2:B25)>COUNTIF(INDEX(База,,2),$H$3),\"\",INDEX(База,MATCH($H$3,INDEX(База,,2),)+COUNTA(B$2:B25)-1,COUNTA($B25:B25)))","v":""},{"$f":"IF(COUNTA(C$2:C25)>COUNTIF(INDEX(База,,2),$H$3),\"\",INDEX(База,MATCH($H$3,INDEX(База,,2),)+COUNTA(C$2:C25)-1,COUNTA($B25:C25)))","v":""},{"$f":"IF(COUNTA(D$2:D25)>COUNTIF(INDEX(База,,2),$H$3),\"\",INDEX(База,MATCH($H$3,INDEX(База,,2),)+COUNTA(D$2:D25)-1,COUNTA($B25:D25)))","v":""},{"$f":"SUMIF(Показатели!$A$3:$A$63,Упорядоченное_расположение!D26,Показатели!$B$3:$B$63)","v":0},{"$f":"COUNTIF(Показатели!$A$3:$A$63,Упорядоченное_расположение!D26)","v":0}]
[null,{"$f":"IF(COUNTA(B$2:B26)>COUNTIF(INDEX(База,,2),$H$3),\"\",INDEX(База,MATCH($H$3,INDEX(База,,2),)+COUNTA(B$2:B26)-1,COUNTA($B26:B26)))","v":""},{"$f":"IF(COUNTA(C$2:C26)>COUNTIF(INDEX(База,,2),$H$3),\"\",INDEX(База,MATCH($H$3,INDEX(База,,2),)+COUNTA(C$2:C26)-1,COUNTA($B26:C26)))","v":""},{"$f":"IF(COUNTA(D$2:D26)>COUNTIF(INDEX(База,,2),$H$3),\"\",INDEX(База,MATCH($H$3,INDEX(База,,2),)+COUNTA(D$2:D26)-1,COUNTA($B26:D26)))","v":""},{"$f":"SUMIF(Показатели!$A$3:$A$63,Упорядоченное_расположение!D27,Показатели!$B$3:$B$63)","v":0},{"$f":"COUNTIF(Показатели!$A$3:$A$63,Упорядоченное_расположение!D27)","v":0}]
[null,{"$f":"IF(COUNTA(B$2:B27)>COUNTIF(INDEX(База,,2),$H$3),\"\",INDEX(База,MATCH($H$3,INDEX(База,,2),)+COUNTA(B$2:B27)-1,COUNTA($B27:B27)))","v":""},{"$f":"IF(COUNTA(C$2:C27)>COUNTIF(INDEX(База,,2),$H$3),\"\",INDEX(База,MATCH($H$3,INDEX(База,,2),)+COUNTA(C$2:C27)-1,COUNTA($B27:C27)))","v":""},{"$f":"IF(COUNTA(D$2:D27)>COUNTIF(INDEX(База,,2),$H$3),\"\",INDEX(База,MATCH($H$3,INDEX(База,,2),)+COUNTA(D$2:D27)-1,COUNTA($B27:D27)))","v":""},{"$f":"SUMIF(Показатели!$A$3:$A$63,Упорядоченное_расположение!D28,Показатели!$B$3:$B$63)","v":0},{"$f":"COUNTIF(Показатели!$A$3:$A$63,Упорядоченное_расположение!D28)","v":0}]
[null,{"$f":"IF(COUNTA(B$2:B28)>COUNTIF(INDEX(База,,2),$H$3),\"\",INDEX(База,MATCH($H$3,INDEX(База,,2),)+COUNTA(B$2:B28)-1,COUNTA($B28:B28)))","v":""},{"$f":"IF(COUNTA(C$2:C28)>COUNTIF(INDEX(База,,2),$H$3),\"\",INDEX(База,MATCH($H$3,INDEX(База,,2),)+COUNTA(C$2:C28)-1,COUNTA($B28:C28)))","v":""},{"$f":"IF(COUNTA(D$2:D28)>COUNTIF(INDEX(База,,2),$H$3),\"\",INDEX(База,MATCH($H$3,INDEX(База,,2),)+COUNTA(D$2:D28)-1,COUNTA($B28:D28)))","v":""},{"$f":"SUMIF(Показатели!$A$3:$A$63,Упорядоченное_расположение!D29,Показатели!$B$3:$B$63)","v":0},{"$f":"COUNTIF(Показатели!$A$3:$A$63,Упорядоченное_расположение!D29)","v":0}]
[null,{"$f":"IF(COUNTA(B$2:B29)>COUNTIF(INDEX(База,,2),$H$3),\"\",INDEX(База,MATCH($H$3,INDEX(База,,2),)+COUNTA(B$2:B29)-1,COUNTA($B29:B29)))","v":""},{"$f":"IF(COUNTA(C$2:C29)>COUNTIF(INDEX(База,,2),$H$3),\"\",INDEX(База,MATCH($H$3,INDEX(База,,2),)+COUNTA(C$2:C29)-1,COUNTA($B29:C29)))","v":""},{"$f":"IF(COUNTA(D$2:D29)>COUNTIF(INDEX(База,,2),$H$3),\"\",INDEX(База,MATCH($H$3,INDEX(База,,2),)+COUNTA(D$2:D29)-1,COUNTA($B29:D29)))","v":""},{"$f":"SUMIF(Показатели!$A$3:$A$63,Упорядоченное_расположение!D30,Показатели!$B$3:$B$63)","v":0},{"$f":"COUNTIF(Показатели!$A$3:$A$63,Упорядоченное_расположение!D30)","v":0}]
[null,{"$f":"IF(COUNTA(B$2:B30)>COUNTIF(INDEX(База,,2),$H$3),\"\",INDEX(База,MATCH($H$3,INDEX(База,,2),)+COUNTA(B$2:B30)-1,COUNTA($B30:B30)))","v":""},{"$f":"IF(COUNTA(C$2:C30)>COUNTIF(INDEX(База,,2),$H$3),\"\",INDEX(База,MATCH($H$3,INDEX(База,,2),)+COUNTA(C$2:C30)-1,COUNTA($B30:C30)))","v":""},{"$f":"IF(COUNTA(D$2:D30)>COUNTIF(INDEX(База,,2),$H$3),\"\",INDEX(База,MATCH($H$3,INDEX(База,,2),)+COUNTA(D$2:D30)-1,COUNTA($B30:D30)))","v":""},{"$f":"SUMIF(Показатели!$A$3:$A$63,Упорядоченное_расположение!D31,Показатели!$B$3:$B$63)","v":0},{"$f":"COUNTIF(Показатели!$A$3:$A$63,Упорядоченное_расположение!D31)","v":0}]
[null,{"$f":"IF(COUNTA(B$2:B31)>COUNTIF(INDEX(База,,2),$H$3),\"\",INDEX(База,MATCH($H$3,INDEX(База,,2),)+COUNTA(B$2:B31)-1,COUNTA($B31:B31)))","v":""},{"$f":"IF(COUNTA(C$2:C31)>COUNTIF(INDEX(База,,2),$H$3),\"\",INDEX(База,MATCH($H$3,INDEX(База,,2),)+COUNTA(C$2:C31)-1,COUNTA($B31:C31)))","v":""},{"$f":"IF(COUNTA(D$2:D31)>COUNTIF(INDEX(База,,2),$H$3),\"\",INDEX(База,MATCH($H$3,INDEX(База,,2),)+COUNTA(D$2:D31)-1,COUNTA($B31:D31)))","v":""},{"$f":"SUMIF(Показатели!$A$3:$A$63,Упорядоченное_расположение!D32,Показатели!$B$3:$B$63)","v":0},{"$f":"COUNTIF(Показатели!$A$3:$A$63,Упорядоченное_расположение!D32)","v":0}]
[null,{"$f":"IF(COUNTA(B$2:B32)>COUNTIF(INDEX(База,,2),$H$3),\"\",INDEX(База,MATCH($H$3,INDEX(База,,2),)+COUNTA(B$2:B32)-1,COUNTA($B32:B32)))","v":""},{"$f":"IF(COUNTA(C$2:C32)>COUNTIF(INDEX(База,,2),$H$3),\"\",INDEX(База,MATCH($H$3,INDEX(База,,2),)+COUNTA(C$2:C32)-1,COUNTA($B32:C32)))","v":""},{"$f":"IF(COUNTA(D$2:D32)>COUNTIF(INDEX(База,,2),$H$3),\"\",INDEX(База,MATCH($H$3,INDEX(База,,2),)+COUNTA(D$2:D32)-1,COUNTA($B32:D32)))","v":""},{"$f":"SUMIF(Показатели!$A$3:$A$63,Упорядоченное_расположение!D33,Показатели!$B$3:$B$63)","v":0},{"$f":"COUNTIF(Показатели!$A$3:$A$63,Упорядоченное_расположение!D33)","v":0}]
[null,{"$f":"IF(COUNTA(B$2:B33)>COUNTIF(INDEX(База,,2),$H$3),\"\",INDEX(База,MATCH($H$3,INDEX(База,,2),)+COUNTA(B$2:B33)-1,COUNTA($B33:B33)))","v":""},{"$f":"IF(COUNTA(C$2:C33)>COUNTIF(INDEX(База,,2),$H$3),\"\",INDEX(База,MATCH($H$3,INDEX(База,,2),)+COUNTA(C$2:C33)-1,COUNTA($B33:C33)))","v":""},{"$f":"IF(COUNTA(D$2:D33)>COUNTIF(INDEX(База,,2),$H$3),\"\",INDEX(База,MATCH($H$3,INDEX(База,,2),)+COUNTA(D$2:D33)-1,COUNTA($B33:D33)))","v":""},{"$f":"SUMIF(Показатели!$A$3:$A$63,Упорядоченное_расположение!D34,Показатели!$B$3:$B$63)","v":0},{"$f":"COUNTIF(Показатели!$A$3:$A$63,Упорядоченное_расположение!D34)","v":0}]
[null,{"$f":"IF(COUNTA(B$2:B34)>COUNTIF(INDEX(База,,2),$H$3),\"\",INDEX(База,MATCH($H$3,INDEX(База,,2),)+COUNTA(B$2:B34)-1,COUNTA($B34:B34)))","v":""},{"$f":"IF(COUNTA(C$2:C34)>COUNTIF(INDEX(База,,2),$H$3),\"\",INDEX(База,MATCH($H$3,INDEX(База,,2),)+COUNTA(C$2:C34)-1,COUNTA($B34:C34)))","v":""},{"$f":"IF(COUNTA(D$2:D34)>COUNTIF(INDEX(База,,2),$H$3),\"\",INDEX(База,MATCH($H$3,INDEX(База,,2),)+COUNTA(D$2:D34)-1,COUNTA($B34:D34)))","v":""},{"$f":"SUMIF(Показатели!$A$3:$A$63,Упорядоченное_расположение!D35,Показатели!$B$3:$B$63)","v":0},{"$f":"COUNTIF(Показатели!$A$3:$A$63,Упорядоченное_расположение!D35)","v":0}]
[null,{"$f":"IF(COUNTA(B$2:B35)>COUNTIF(INDEX(База,,2),$H$3),\"\",INDEX(База,MATCH($H$3,INDEX(База,,2),)+COUNTA(B$2:B35)-1,COUNTA($B35:B35)))","v":""},{"$f":"IF(COUNTA(C$2:C35)>COUNTIF(INDEX(База,,2),$H$3),\"\",INDEX(База,MATCH($H$3,INDEX(База,,2),)+COUNTA(C$2:C35)-1,COUNTA($B35:C35)))","v":""},{"$f":"IF(COUNTA(D$2:D35)>COUNTIF(INDEX(База,,2),$H$3),\"\",INDEX(База,MATCH($H$3,INDEX(База,,2),)+COUNTA(D$2:D35)-1,COUNTA($B35:D35)))","v":""},{"$f":"SUMIF(Показатели!$A$3:$A$63,Упорядоченное_расположение!D36,Показатели!$B$3:$B$63)","v":0},{"$f":"COUNTIF(Показатели!$A$3:$A$63,Упорядоченное_расположение!D36)","v":0}]
[null,{"$f":"IF(COUNTA(B$2:B36)>COUNTIF(INDEX(База,,2),$H$3),\"\",INDEX(База,MATCH($H$3,INDEX(База,,2),)+COUNTA(B$2:B36)-1,COUNTA($B36:B36)))","v":""},{"$f":"IF(COUNTA(C$2:C36)>COUNTIF(INDEX(База,,2),$H$3),\"\",INDEX(База,MATCH($H$3,INDEX(База,,2),)+COUNTA(C$2:C36)-1,COUNTA($B36:C36)))","v":""},{"$f":"IF(COUNTA(D$2:D36)>COUNTIF(INDEX(База,,2),$H$3),\"\",INDEX(База,MATCH($H$3,INDEX(База,,2),)+COUNTA(D$2:D36)-1,COUNTA($B36:D36)))","v":""},{"$f":"SUMIF(Показатели!$A$3:$A$63,Упорядоченное_расположение!D37,Показатели!$B$3:$B$63)","v":0},{"$f":"COUNTIF(Показатели!$A$3:$A$63,Упорядоченное_расположение!D37)","v":0}]
[null,{"$f":"IF(COUNTA(B$2:B37)>COUNTIF(INDEX(База,,2),$H$3),\"\",INDEX(База,MATCH($H$3,INDEX(База,,2),)+COUNTA(B$2:B37)-1,COUNTA($B37:B37)))","v":""},{"$f":"IF(COUNTA(C$2:C37)>COUNTIF(INDEX(База,,2),$H$3),\"\",INDEX(База,MATCH($H$3,INDEX(База,,2),)+COUNTA(C$2:C37)-1,COUNTA($B37:C37)))","v":""},{"$f":"IF(COUNTA(D$2:D37)>COUNTIF(INDEX(База,,2),$H$3),\"\",INDEX(База,MATCH($H$3,INDEX(База,,2),)+COUNTA(D$2:D37)-1,COUNTA($B37:D37)))","v":""},{"$f":"SUMIF(Показатели!$A$3:$A$63,Упорядоченное_расположение!D38,Показатели!$B$3:$B$63)","v":0},{"$f":"COUNTIF(Показатели!$A$3:$A$63,Упорядоченное_расположение!D38)","v":0}]
[null,{"$f":"IF(COUNTA(B$2:B38)>COUNTIF(INDEX(База,,2),$H$3),\"\",INDEX(База,MATCH($H$3,INDEX(База,,2),)+COUNTA(B$2:B38)-1,COUNTA($B38:B38)))","v":""},{"$f":"IF(COUNTA(C$2:C38)>COUNTIF(INDEX(База,,2),$H$3),\"\",INDEX(База,MATCH($H$3,INDEX(База,,2),)+COUNTA(C$2:C38)-1,COUNTA($B38:C38)))","v":""},{"$f":"IF(COUNTA(D$2:D38)>COUNTIF(INDEX(База,,2),$H$3),\"\",INDEX(База,MATCH($H$3,INDEX(База,,2),)+COUNTA(D$2:D38)-1,COUNTA($B38:D38)))","v":""},{"$f":"SUMIF(Показатели!$A$3:$A$63,Упорядоченное_расположение!D39,Показатели!$B$3:$B$63)","v":0},{"$f":"COUNTIF(Показатели!$A$3:$A$63,Упорядоченное_расположение!D39)","v":0}]
[null,{"$f":"IF(COUNTA(B$2:B39)>COUNTIF(INDEX(База,,2),$H$3),\"\",INDEX(База,MATCH($H$3,INDEX(База,,2),)+COUNTA(B$2:B39)-1,COUNTA($B39:B39)))","v":""},{"$f":"IF(COUNTA(C$2:C39)>COUNTIF(INDEX(База,,2),$H$3),\"\",INDEX(База,MATCH($H$3,INDEX(База,,2),)+COUNTA(C$2:C39)-1,COUNTA($B39:C39)))","v":""},{"$f":"IF(COUNTA(D$2:D39)>COUNTIF(INDEX(База,,2),$H$3),\"\",INDEX(База,MATCH($H$3,INDEX(База,,2),)+COUNTA(D$2:D39)-1,COUNTA($B39:D39)))","v":""},{"$f":"SUMIF(Показатели!$A$3:$A$63,Упорядоченное_расположение!D40,Показатели!$B$3:$B$63)","v":0},{"$f":"COUNTIF(Показатели!$A$3:$A$63,Упорядоченное_расположение!D40)","v":0}]
[null,{"$f":"IF(COUNTA(B$2:B40)>COUNTIF(INDEX(База,,2),$H$3),\"\",INDEX(База,MATCH($H$3,INDEX(База,,2),)+COUNTA(B$2:B40)-1,COUNTA($B40:B40)))","v":""},{"$f":"IF(COUNTA(C$2:C40)>COUNTIF(INDEX(База,,2),$H$3),\"\",INDEX(База,MATCH($H$3,INDEX(База,,2),)+COUNTA(C$2:C40)-1,COUNTA($B40:C40)))","v":""},{"$f":"IF(COUNTA(D$2:D40)>COUNTIF(INDEX(База,,2),$H$3),\"\",INDEX(База,MATCH($H$3,INDEX(База,,2),)+COUNTA(D$2:D40)-1,COUNTA($B40:D40)))","v":""},{"$f":"SUMIF(Показатели!$A$3:$A$63,Упорядоченное_расположение!D41,Показатели!$B$3:$B$63)","v":0},{"$f":"COUNTIF(Показатели!$A$3:$A$63,Упорядоченное_расположение!D41)","v":0}]
[null,{"$f":"IF(COUNTA(B$2:B41)>COUNTIF(INDEX(База,,2),$H$3),\"\",INDEX(База,MATCH($H$3,INDEX(База,,2),)+COUNTA(B$2:B41)-1,COUNTA($B41:B41)))","v":""},{"$f":"IF(COUNTA(C$2:C41)>COUNTIF(INDEX(База,,2),$H$3),\"\",INDEX(База,MATCH($H$3,INDEX(База,,2),)+COUNTA(C$2:C41)-1,COUNTA($B41:C41)))","v":""},{"$f":"IF(COUNTA(D$2:D41)>COUNTIF(INDEX(База,,2),$H$3),\"\",INDEX(База,MATCH($H$3,INDEX(База,,2),)+COUNTA(D$2:D41)-1,COUNTA($B41:D41)))","v":""},{"$f":"SUMIF(Показатели!$A$3:$A$63,Упорядоченное_расположение!D42,Показатели!$B$3:$B$63)","v":0},{"$f":"COUNTIF(Показатели!$A$3:$A$63,Упорядоченное_расположение!D42)","v":0}]
[null,{"$f":"IF(COUNTA(B$2:B42)>COUNTIF(INDEX(База,,2),$H$3),\"\",INDEX(База,MATCH($H$3,INDEX(База,,2),)+COUNTA(B$2:B42)-1,COUNTA($B42:B42)))","v":""},{"$f":"IF(COUNTA(C$2:C42)>COUNTIF(INDEX(База,,2),$H$3),\"\",INDEX(База,MATCH($H$3,INDEX(База,,2),)+COUNTA(C$2:C42)-1,COUNTA($B42:C42)))","v":""},{"$f":"IF(COUNTA(D$2:D42)>COUNTIF(INDEX(База,,2),$H$3),\"\",INDEX(База,MATCH($H$3,INDEX(База,,2),)+COUNTA(D$2:D42)-1,COUNTA($B42:D42)))","v":""},{"$f":"SUMIF(Показатели!$A$3:$A$63,Упорядоченное_расположение!D43,Показатели!$B$3:$B$63)","v":0},{"$f":"COUNTIF(Показатели!$A$3:$A$63,Упорядоченное_расположение!D43)","v":0}]
[null,{"$f":"IF(COUNTA(B$2:B43)>COUNTIF(INDEX(База,,2),$H$3),\"\",INDEX(База,MATCH($H$3,INDEX(База,,2),)+COUNTA(B$2:B43)-1,COUNTA($B43:B43)))","v":""},{"$f":"IF(COUNTA(C$2:C43)>COUNTIF(INDEX(База,,2),$H$3),\"\",INDEX(База,MATCH($H$3,INDEX(База,,2),)+COUNTA(C$2:C43)-1,COUNTA($B43:C43)))","v":""},{"$f":"IF(COUNTA(D$2:D43)>COUNTIF(INDEX(База,,2),$H$3),\"\",INDEX(База,MATCH($H$3,INDEX(База,,2),)+COUNTA(D$2:D43)-1,COUNTA($B43:D43)))","v":""},{"$f":"SUMIF(Показатели!$A$3:$A$63,Упорядоченное_расположение!D44,Показатели!$B$3:$B$63)","v":0},{"$f":"COUNTIF(Показатели!$A$3:$A$63,Упорядоченное_расположение!D44)","v":0}]
[null,{"$f":"IF(COUNTA(B$2:B44)>COUNTIF(INDEX(База,,2),$H$3),\"\",INDEX(База,MATCH($H$3,INDEX(База,,2),)+COUNTA(B$2:B44)-1,COUNTA($B44:B44)))","v":""},{"$f":"IF(COUNTA(C$2:C44)>COUNTIF(INDEX(База,,2),$H$3),\"\",INDEX(База,MATCH($H$3,INDEX(База,,2),)+COUNTA(C$2:C44)-1,COUNTA($B44:C44)))","v":""},{"$f":"IF(COUNTA(D$2:D44)>COUNTIF(INDEX(База,,2),$H$3),\"\",INDEX(База,MATCH($H$3,INDEX(База,,2),)+COUNTA(D$2:D44)-1,COUNTA($B44:D44)))","v":""},{"$f":"SUMIF(Показатели!$A$3:$A$63,Упорядоченное_расположение!D45,Показатели!$B$3:$B$63)","v":0},{"$f":"COUNTIF(Показатели!$A$3:$A$63,Упорядоченное_расположение!D45)","v":0}]
[null,{"$f":"IF(COUNTA(B$2:B45)>COUNTIF(INDEX(База,,2),$H$3),\"\",INDEX(База,MATCH($H$3,INDEX(База,,2),)+COUNTA(B$2:B45)-1,COUNTA($B45:B45)))","v":""},{"$f":"IF(COUNTA(C$2:C45)>COUNTIF(INDEX(База,,2),$H$3),\"\",INDEX(База,MATCH($H$3,INDEX(База,,2),)+COUNTA(C$2:C45)-1,COUNTA($B45:C45)))","v":""},{"$f":"IF(COUNTA(D$2:D45)>COUNTIF(INDEX(База,,2),$H$3),\"\",INDEX(База,MATCH($H$3,INDEX(База,,2),)+COUNTA(D$2:D45)-1,COUNTA($B45:D45)))","v":""},{"$f":"SUMIF(Показатели!$A$3:$A$63,Упорядоченное_расположение!D46,Показатели!$B$3:$B$63)","v":0},{"$f":"COUNTIF(Показатели!$A$3:$A$63,Упорядоченное_расположение!D46)","v":0}]
[null,{"$f":"IF(COUNTA(B$2:B46)>COUNTIF(INDEX(База,,2),$H$3),\"\",INDEX(База,MATCH($H$3,INDEX(База,,2),)+COUNTA(B$2:B46)-1,COUNTA($B46:B46)))","v":""},{"$f":"IF(COUNTA(C$2:C46)>COUNTIF(INDEX(База,,2),$H$3),\"\",INDEX(База,MATCH($H$3,INDEX(База,,2),)+COUNTA(C$2:C46)-1,COUNTA($B46:C46)))","v":""},{"$f":"IF(COUNTA(D$2:D46)>COUNTIF(INDEX(База,,2),$H$3),\"\",INDEX(База,MATCH($H$3,INDEX(База,,2),)+COUNTA(D$2:D46)-1,COUNTA($B46:D46)))","v":""},{"$f":"SUMIF(Показатели!$A$3:$A$63,Упорядоченное_расположение!D47,Показатели!$B$3:$B$63)","v":0},{"$f":"COUNTIF(Показатели!$A$3:$A$63,Упорядоченное_расположение!D47)","v":0}]
[null,{"$f":"IF(COUNTA(B$2:B47)>COUNTIF(INDEX(База,,2),$H$3),\"\",INDEX(База,MATCH($H$3,INDEX(База,,2),)+COUNTA(B$2:B47)-1,COUNTA($B47:B47)))","v":""},{"$f":"IF(COUNTA(C$2:C47)>COUNTIF(INDEX(База,,2),$H$3),\"\",INDEX(База,MATCH($H$3,INDEX(База,,2),)+COUNTA(C$2:C47)-1,COUNTA($B47:C47)))","v":""},{"$f":"IF(COUNTA(D$2:D47)>COUNTIF(INDEX(База,,2),$H$3),\"\",INDEX(База,MATCH($H$3,INDEX(База,,2),)+COUNTA(D$2:D47)-1,COUNTA($B47:D47)))","v":""},{"$f":"SUMIF(Показатели!$A$3:$A$63,Упорядоченное_расположение!D48,Показатели!$B$3:$B$63)","v":0},{"$f":"COUNTIF(Показатели!$A$3:$A$63,Упорядоченное_расположение!D48)","v":0}]
[null,{"$f":"IF(COUNTA(B$2:B48)>COUNTIF(INDEX(База,,2),$H$3),\"\",INDEX(База,MATCH($H$3,INDEX(База,,2),)+COUNTA(B$2:B48)-1,COUNTA($B48:B48)))","v":""},{"$f":"IF(COUNTA(C$2:C48)>COUNTIF(INDEX(База,,2),$H$3),\"\",INDEX(База,MATCH($H$3,INDEX(База,,2),)+COUNTA(C$2:C48)-1,COUNTA($B48:C48)))","v":""},{"$f":"IF(COUNTA(D$2:D48)>COUNTIF(INDEX(База,,2),$H$3),\"\",INDEX(База,MATCH($H$3,INDEX(База,,2),)+COUNTA(D$2:D48)-1,COUNTA($B48:D48)))","v":""},{"$f":"SUMIF(Показатели!$A$3:$A$63,Упорядоченное_расположение!D49,Показатели!$B$3:$B$63)","v":0},{"$f":"COUNTIF(Показатели!$A$3:$A$63,Упорядоченное_расположение!D49)","v":0}]
[null,{"$f":"IF(COUNTA(B$2:B49)>COUNTIF(INDEX(База,,2),$H$3),\"\",INDEX(База,MATCH($H$3,INDEX(База,,2),)+COUNTA(B$2:B49)-1,COUNTA($B49:B49)))","v":""},{"$f":"IF(COUNTA(C$2:C49)>COUNTIF(INDEX(База,,2),$H$3),\"\",INDEX(База,MATCH($H$3,INDEX(База,,2),)+COUNTA(C$2:C49)-1,COUNTA($B49:C49)))","v":""},{"$f":"IF(COUNTA(D$2:D49)>COUNTIF(INDEX(База,,2),$H$3),\"\",INDEX(База,MATCH($H$3,INDEX(База,,2),)+COUNTA(D$2:D49)-1,COUNTA($B49:D49)))","v":""},{"$f":"SUMIF(Показатели!$A$3:$A$63,Упорядоченное_расположение!D50,Показатели!$B$3:$B$63)","v":0},{"$f":"COUNTIF(Показатели!$A$3:$A$63,Упорядоченное_расположение!D50)","v":0}]
[null,{"$f":"IF(COUNTA(B$2:B50)>COUNTIF(INDEX(База,,2),$H$3),\"\",INDEX(База,MATCH($H$3,INDEX(База,,2),)+COUNTA(B$2:B50)-1,COUNTA($B50:B50)))","v":""},{"$f":"IF(COUNTA(C$2:C50)>COUNTIF(INDEX(База,,2),$H$3),\"\",INDEX(База,MATCH($H$3,INDEX(База,,2),)+COUNTA(C$2:C50)-1,COUNTA($B50:C50)))","v":""},{"$f":"IF(COUNTA(D$2:D50)>COUNTIF(INDEX(База,,2),$H$3),\"\",INDEX(База,MATCH($H$3,INDEX(База,,2),)+COUNTA(D$2:D50)-1,COUNTA($B50:D50)))","v":""},{"$f":"SUMIF(Показатели!$A$3:$A$63,Упорядоченное_расположение!D51,Показатели!$B$3:$B$63)","v":0},{"$f":"COUNTIF(Показатели!$A$3:$A$63,Упорядоченное_расположение!D51)","v":0}]
[null,{"$f":"IF(COUNTA(B$2:B51)>COUNTIF(INDEX(База,,2),$H$3),\"\",INDEX(База,MATCH($H$3,INDEX(База,,2),)+COUNTA(B$2:B51)-1,COUNTA($B51:B51)))","v":""},{"$f":"IF(COUNTA(C$2:C51)>COUNTIF(INDEX(База,,2),$H$3),\"\",INDEX(База,MATCH($H$3,INDEX(База,,2),)+COUNTA(C$2:C51)-1,COUNTA($B51:C51)))","v":""},{"$f":"IF(COUNTA(D$2:D51)>COUNTIF(INDEX(База,,2),$H$3),\"\",INDEX(База,MATCH($H$3,INDEX(База,,2),)+COUNTA(D$2:D51)-1,COUNTA($B51:D51)))","v":""},{"$f":"SUMIF(Показатели!$A$3:$A$63,Упорядоченное_расположение!D52,Показатели!$B$3:$B$63)","v":0},{"$f":"COUNTIF(Показатели!$A$3:$A$63,Упорядоченное_расположение!D52)","v":0}]
[null,{"$f":"IF(COUNTA(B$2:B52)>COUNTIF(INDEX(База,,2),$H$3),\"\",INDEX(База,MATCH($H$3,INDEX(База,,2),)+COUNTA(B$2:B52)-1,COUNTA($B52:B52)))","v":""},{"$f":"IF(COUNTA(C$2:C52)>COUNTIF(INDEX(База,,2),$H$3),\"\",INDEX(База,MATCH($H$3,INDEX(База,,2),)+COUNTA(C$2:C52)-1,COUNTA($B52:C52)))","v":""},{"$f":"IF(COUNTA(D$2:D52)>COUNTIF(INDEX(База,,2),$H$3),\"\",INDEX(База,MATCH($H$3,INDEX(База,,2),)+COUNTA(D$2:D52)-1,COUNTA($B52:D52)))","v":""},{"$f":"SUMIF(Показатели!$A$3:$A$63,Упорядоченное_расположение!D53,Показатели!$B$3:$B$63)","v":0},{"$f":"COUNTIF(Показатели!$A$3:$A$63,Упорядоченное_расположение!D53)","v":0}]
[null,{"$f":"IF(COUNTA(B$2:B53)>COUNTIF(INDEX(База,,2),$H$3),\"\",INDEX(База,MATCH($H$3,INDEX(База,,2),)+COUNTA(B$2:B53)-1,COUNTA($B53:B53)))","v":""},{"$f":"IF(COUNTA(C$2:C53)>COUNTIF(INDEX(База,,2),$H$3),\"\",INDEX(База,MATCH($H$3,INDEX(База,,2),)+COUNTA(C$2:C53)-1,COUNTA($B53:C53)))","v":""},{"$f":"IF(COUNTA(D$2:D53)>COUNTIF(INDEX(База,,2),$H$3),\"\",INDEX(База,MATCH($H$3,INDEX(База,,2),)+COUNTA(D$2:D53)-1,COUNTA($B53:D53)))","v":""},{"$f":"SUMIF(Показатели!$A$3:$A$63,Упорядоченное_расположение!D54,Показатели!$B$3:$B$63)","v":0},{"$f":"COUNTIF(Показатели!$A$3:$A$63,Упорядоченное_расположение!D54)","v":0}]
[null,{"$f":"IF(COUNTA(B$2:B54)>COUNTIF(INDEX(База,,2),$H$3),\"\",INDEX(База,MATCH($H$3,INDEX(База,,2),)+COUNTA(B$2:B54)-1,COUNTA($B54:B54)))","v":""},{"$f":"IF(COUNTA(C$2:C54)>COUNTIF(INDEX(База,,2),$H$3),\"\",INDEX(База,MATCH($H$3,INDEX(База,,2),)+COUNTA(C$2:C54)-1,COUNTA($B54:C54)))","v":""},{"$f":"IF(COUNTA(D$2:D54)>COUNTIF(INDEX(База,,2),$H$3),\"\",INDEX(База,MATCH($H$3,INDEX(База,,2),)+COUNTA(D$2:D54)-1,COUNTA($B54:D54)))","v":""},{"$f":"SUMIF(Показатели!$A$3:$A$63,Упорядоченное_расположение!D55,Показатели!$B$3:$B$63)","v":0},{"$f":"COUNTIF(Показатели!$A$3:$A$63,Упорядоченное_расположение!D55)","v":0}]
[null,{"$f":"IF(COUNTA(B$2:B55)>COUNTIF(INDEX(База,,2),$H$3),\"\",INDEX(База,MATCH($H$3,INDEX(База,,2),)+COUNTA(B$2:B55)-1,COUNTA($B55:B55)))","v":""},{"$f":"IF(COUNTA(C$2:C55)>COUNTIF(INDEX(База,,2),$H$3),\"\",INDEX(База,MATCH($H$3,INDEX(База,,2),)+COUNTA(C$2:C55)-1,COUNTA($B55:C55)))","v":""},{"$f":"IF(COUNTA(D$2:D55)>COUNTIF(INDEX(База,,2),$H$3),\"\",INDEX(База,MATCH($H$3,INDEX(База,,2),)+COUNTA(D$2:D55)-1,COUNTA($B55:D55)))","v":""},{"$f":"SUMIF(Показатели!$A$3:$A$63,Упорядоченное_расположение!D56,Показатели!$B$3:$B$63)","v":0},{"$f":"COUNTIF(Показатели!$A$3:$A$63,Упорядоченное_расположение!D56)","v":0}]
[null,{"$f":"IF(COUNTA(B$2:B56)>COUNTIF(INDEX(База,,2),$H$3),\"\",INDEX(База,MATCH($H$3,INDEX(База,,2),)+COUNTA(B$2:B56)-1,COUNTA($B56:B56)))","v":""},{"$f":"IF(COUNTA(C$2:C56)>COUNTIF(INDEX(База,,2),$H$3),\"\",INDEX(База,MATCH($H$3,INDEX(База,,2),)+COUNTA(C$2:C56)-1,COUNTA($B56:C56)))","v":""},{"$f":"IF(COUNTA(D$2:D56)>COUNTIF(INDEX(База,,2),$H$3),\"\",INDEX(База,MATCH($H$3,INDEX(База,,2),)+COUNTA(D$2:D56)-1,COUNTA($B56:D56)))","v":""},{"$f":"SUMIF(Показатели!$A$3:$A$63,Упорядоченное_расположение!D57,Показатели!$B$3:$B$63)","v":0},{"$f":"COUNTIF(Показатели!$A$3:$A$63,Упорядоченное_расположение!D57)","v":0}]
[null,{"$f":"IF(COUNTA(B$2:B57)>COUNTIF(INDEX(База,,2),$H$3),\"\",INDEX(База,MATCH($H$3,INDEX(База,,2),)+COUNTA(B$2:B57)-1,COUNTA($B57:B57)))","v":""},{"$f":"IF(COUNTA(C$2:C57)>COUNTIF(INDEX(База,,2),$H$3),\"\",INDEX(База,MATCH($H$3,INDEX(База,,2),)+COUNTA(C$2:C57)-1,COUNTA($B57:C57)))","v":""},{"$f":"IF(COUNTA(D$2:D57)>COUNTIF(INDEX(База,,2),$H$3),\"\",INDEX(База,MATCH($H$3,INDEX(База,,2),)+COUNTA(D$2:D57)-1,COUNTA($B57:D57)))","v":""},{"$f":"SUMIF(Показатели!$A$3:$A$63,Упорядоченное_расположение!D58,Показатели!$B$3:$B$63)","v":0},{"$f":"COUNTIF(Показатели!$A$3:$A$63,Упорядоченное_расположение!D58)","v":0}]
[null,{"$f":"IF(COUNTA(B$2:B58)>COUNTIF(INDEX(База,,2),$H$3),\"\",INDEX(База,MATCH($H$3,INDEX(База,,2),)+COUNTA(B$2:B58)-1,COUNTA($B58:B58)))","v":""},{"$f":"IF(COUNTA(C$2:C58)>COUNTIF(INDEX(База,,2),$H$3),\"\",INDEX(База,MATCH($H$3,INDEX(База,,2),)+COUNTA(C$2:C58)-1,COUNTA($B58:C58)))","v":""},{"$f":"IF(COUNTA(D$2:D58)>COUNTIF(INDEX(База,,2),$H$3),\"\",INDEX(База,MATCH($H$3,INDEX(База,,2),)+COUNTA(D$2:D58)-1,COUNTA($B58:D58)))","v":""},{"$f":"SUMIF(Показатели!$A$3:$A$63,Упорядоченное_расположение!D59,Показатели!$B$3:$B$63)","v":0},{"$f":"COUNTIF(Показатели!$A$3:$A$63,Упорядоченное_расположение!D59)","v":0}]
[null,{"$f":"IF(COUNTA(B$2:B59)>COUNTIF(INDEX(База,,2),$H$3),\"\",INDEX(База,MATCH($H$3,INDEX(База,,2),)+COUNTA(B$2:B59)-1,COUNTA($B59:B59)))","v":""},{"$f":"IF(COUNTA(C$2:C59)>COUNTIF(INDEX(База,,2),$H$3),\"\",INDEX(База,MATCH($H$3,INDEX(База,,2),)+COUNTA(C$2:C59)-1,COUNTA($B59:C59)))","v":""},{"$f":"IF(COUNTA(D$2:D59)>COUNTIF(INDEX(База,,2),$H$3),\"\",INDEX(База,MATCH($H$3,INDEX(База,,2),)+COUNTA(D$2:D59)-1,COUNTA($B59:D59)))","v":""},{"$f":"SUMIF(Показатели!$A$3:$A$63,Упорядоченное_расположение!D60,Показатели!$B$3:$B$63)","v":0},{"$f":"COUNTIF(Показатели!$A$3:$A$63,Упорядоченное_расположение!D60)","v":0}]
[null,{"$f":"IF(COUNTA(B$2:B60)>COUNTIF(INDEX(База,,2),$H$3),\"\",INDEX(База,MATCH($H$3,INDEX(База,,2),)+COUNTA(B$2:B60)-1,COUNTA($B60:B60)))","v":""},{"$f":"IF(COUNTA(C$2:C60)>COUNTIF(INDEX(База,,2),$H$3),\"\",INDEX(База,MATCH($H$3,INDEX(База,,2),)+COUNTA(C$2:C60)-1,COUNTA($B60:C60)))","v":""},{"$f":"IF(COUNTA(D$2:D60)>COUNTIF(INDEX(База,,2),$H$3),\"\",INDEX(База,MATCH($H$3,INDEX(База,,2),)+COUNTA(D$2:D60)-1,COUNTA($B60:D60)))","v":""},{"$f":"SUMIF(Показатели!$A$3:$A$63,Упорядоченное_расположение!D61,Показатели!$B$3:$B$63)","v":0},{"$f":"COUNTIF(Показатели!$A$3:$A$63,Упорядоченное_расположение!D61)","v":0}]
[null,{"$f":"IF(COUNTA(B$2:B61)>COUNTIF(INDEX(База,,2),$H$3),\"\",INDEX(База,MATCH($H$3,INDEX(База,,2),)+COUNTA(B$2:B61)-1,COUNTA($B61:B61)))","v":""},{"$f":"IF(COUNTA(C$2:C61)>COUNTIF(INDEX(База,,2),$H$3),\"\",INDEX(База,MATCH($H$3,INDEX(База,,2),)+COUNTA(C$2:C61)-1,COUNTA($B61:C61)))","v":""},{"$f":"IF(COUNTA(D$2:D61)>COUNTIF(INDEX(База,,2),$H$3),\"\",INDEX(База,MATCH($H$3,INDEX(База,,2),)+COUNTA(D$2:D61)-1,COUNTA($B61:D61)))","v":""},{"$f":"SUMIF(Показатели!$A$3:$A$63,Упорядоченное_расположение!D62,Показатели!$B$3:$B$63)","v":0},{"$f":"COUNTIF(Показатели!$A$3:$A$63,Упорядоченное_расположение!D62)","v":0}]
[null,{"$f":"IF(COUNTA(B$2:B62)>COUNTIF(INDEX(База,,2),$H$3),\"\",INDEX(База,MATCH($H$3,INDEX(База,,2),)+COUNTA(B$2:B62)-1,COUNTA($B62:B62)))","v":""},{"$f":"IF(COUNTA(C$2:C62)>COUNTIF(INDEX(База,,2),$H$3),\"\",INDEX(База,MATCH($H$3,INDEX(База,,2),)+COUNTA(C$2:C62)-1,COUNTA($B62:C62)))","v":""},{"$f":"IF(COUNTA(D$2:D62)>COUNTIF(INDEX(База,,2),$H$3),\"\",INDEX(База,MATCH($H$3,INDEX(База,,2),)+COUNTA(D$2:D62)-1,COUNTA($B62:D62)))","v":""},{"$f":"SUMIF(Показатели!$A$3:$A$63,Упорядоченное_расположение!D63,Показатели!$B$3:$B$63)","v":0},{"$f":"COUNTIF(Показатели!$A$3:$A$63,Упорядоченное_расположение!D63)","v":0}]
[null,{"$f":"IF(COUNTA(B$2:B63)>COUNTIF(INDEX(База,,2),$H$3),\"\",INDEX(База,MATCH($H$3,INDEX(База,,2),)+COUNTA(B$2:B63)-1,COUNTA($B63:B63)))","v":""},{"$f":"IF(COUNTA(C$2:C63)>COUNTIF(INDEX(База,,2),$H$3),\"\",INDEX(База,MATCH($H$3,INDEX(База,,2),)+COUNTA(C$2:C63)-1,COUNTA($B63:C63)))","v":""},{"$f":"IF(COUNTA(D$2:D63)>COUNTIF(INDEX(База,,2),$H$3),\"\",INDEX(База,MATCH($H$3,INDEX(База,,2),)+COUNTA(D$2:D63)-1,COUNTA($B63:D63)))","v":""},{"$f":"SUMIF(Показатели!$A$3:$A$63,Упорядоченное_расположение!D64,Показатели!$B$3:$B$63)","v":0},{"$f":"COUNTIF(Показатели!$A$3:$A$63,Упорядоченное_расположение!D64)","v":0}]
[null,{"$f":"IF(COUNTA(B$2:B64)>COUNTIF(INDEX(База,,2),$H$3),\"\",INDEX(База,MATCH($H$3,INDEX(База,,2),)+COUNTA(B$2:B64)-1,COUNTA($B64:B64)))","v":""},{"$f":"IF(COUNTA(C$2:C64)>COUNTIF(INDEX(База,,2),$H$3),\"\",INDEX(База,MATCH($H$3,INDEX(База,,2),)+COUNTA(C$2:C64)-1,COUNTA($B64:C64)))","v":""},{"$f":"IF(COUNTA(D$2:D64)>COUNTIF(INDEX(База,,2),$H$3),\"\",INDEX(База,MATCH($H$3,INDEX(База,,2),)+COUNTA(D$2:D64)-1,COUNTA($B64:D64)))","v":""},{"$f":"SUMIF(Показатели!$A$3:$A$63,Упорядоченное_расположение!D65,Показатели!$B$3:$B$63)","v":0},{"$f":"COUNTIF(Показатели!$A$3:$A$63,Упорядоченное_расположение!D65)","v":0}]
[null,{"$f":"IF(COUNTA(B$2:B65)>COUNTIF(INDEX(База,,2),$H$3),\"\",INDEX(База,MATCH($H$3,INDEX(База,,2),)+COUNTA(B$2:B65)-1,COUNTA($B65:B65)))","v":""},{"$f":"IF(COUNTA(C$2:C65)>COUNTIF(INDEX(База,,2),$H$3),\"\",INDEX(База,MATCH($H$3,INDEX(База,,2),)+COUNTA(C$2:C65)-1,COUNTA($B65:C65)))","v":""},{"$f":"IF(COUNTA(D$2:D65)>COUNTIF(INDEX(База,,2),$H$3),\"\",INDEX(База,MATCH($H$3,INDEX(База,,2),)+COUNTA(D$2:D65)-1,COUNTA($B65:D65)))","v":""},{"$f":"SUMIF(Показатели!$A$3:$A$63,Упорядоченное_расположение!D66,Показатели!$B$3:$B$63)","v":0},{"$f":"COUNTIF(Показатели!$A$3:$A$63,Упорядоченное_расположение!D66)","v":0}]
[null,{"$f":"IF(COUNTA(B$2:B66)>COUNTIF(INDEX(База,,2),$H$3),\"\",INDEX(База,MATCH($H$3,INDEX(База,,2),)+COUNTA(B$2:B66)-1,COUNTA($B66:B66)))","v":""},{"$f":"IF(COUNTA(C$2:C66)>COUNTIF(INDEX(База,,2),$H$3),\"\",INDEX(База,MATCH($H$3,INDEX(База,,2),)+COUNTA(C$2:C66)-1,COUNTA($B66:C66)))","v":""},{"$f":"IF(COUNTA(D$2:D66)>COUNTIF(INDEX(База,,2),$H$3),\"\",INDEX(База,MATCH($H$3,INDEX(База,,2),)+COUNTA(D$2:D66)-1,COUNTA($B66:D66)))","v":""},{"$f":"SUMIF(Показатели!$A$3:$A$63,Упорядоченное_расположение!D67,Показатели!$B$3:$B$63)","v":0},{"$f":"COUNTIF(Показатели!$A$3:$A$63,Упорядоченное_расположение!D67)","v":0}]
[null,{"$f":"IF(COUNTA(B$2:B67)>COUNTIF(INDEX(База,,2),$H$3),\"\",INDEX(База,MATCH($H$3,INDEX(База,,2),)+COUNTA(B$2:B67)-1,COUNTA($B67:B67)))","v":""},{"$f":"IF(COUNTA(C$2:C67)>COUNTIF(INDEX(База,,2),$H$3),\"\",INDEX(База,MATCH($H$3,INDEX(База,,2),)+COUNTA(C$2:C67)-1,COUNTA($B67:C67)))","v":""},{"$f":"IF(COUNTA(D$2:D67)>COUNTIF(INDEX(База,,2),$H$3),\"\",INDEX(База,MATCH($H$3,INDEX(База,,2),)+COUNTA(D$2:D67)-1,COUNTA($B67:D67)))","v":""},{"$f":"SUMIF(Показатели!$A$3:$A$63,Упорядоченное_расположение!D68,Показатели!$B$3:$B$63)","v":0},{"$f":"COUNTIF(Показатели!$A$3:$A$63,Упорядоченное_расположение!D68)","v":0}]
[null,{"$f":"IF(COUNTA(B$2:B68)>COUNTIF(INDEX(База,,2),$H$3),\"\",INDEX(База,MATCH($H$3,INDEX(База,,2),)+COUNTA(B$2:B68)-1,COUNTA($B68:B68)))","v":""},{"$f":"IF(COUNTA(C$2:C68)>COUNTIF(INDEX(База,,2),$H$3),\"\",INDEX(База,MATCH($H$3,INDEX(База,,2),)+COUNTA(C$2:C68)-1,COUNTA($B68:C68)))","v":""},{"$f":"IF(COUNTA(D$2:D68)>COUNTIF(INDEX(База,,2),$H$3),\"\",INDEX(База,MATCH($H$3,INDEX(База,,2),)+COUNTA(D$2:D68)-1,COUNTA($B68:D68)))","v":""},{"$f":"SUMIF(Показатели!$A$3:$A$63,Упорядоченное_расположение!D69,Показатели!$B$3:$B$63)","v":0},{"$f":"COUNTIF(Показатели!$A$3:$A$63,Упорядоченное_расположение!D69)","v":0}]
[null,{"$f":"IF(COUNTA(B$2:B69)>COUNTIF(INDEX(База,,2),$H$3),\"\",INDEX(База,MATCH($H$3,INDEX(База,,2),)+COUNTA(B$2:B69)-1,COUNTA($B69:B69)))","v":""},{"$f":"IF(COUNTA(C$2:C69)>COUNTIF(INDEX(База,,2),$H$3),\"\",INDEX(База,MATCH($H$3,INDEX(База,,2),)+COUNTA(C$2:C69)-1,COUNTA($B69:C69)))","v":""},{"$f":"IF(COUNTA(D$2:D69)>COUNTIF(INDEX(База,,2),$H$3),\"\",INDEX(База,MATCH($H$3,INDEX(База,,2),)+COUNTA(D$2:D69)-1,COUNTA($B69:D69)))","v":""},{"$f":"SUMIF(Показатели!$A$3:$A$63,Упорядоченное_расположение!D70,Показатели!$B$3:$B$63)","v":0},{"$f":"COUNTIF(Показатели!$A$3:$A$63,Упорядоченное_расположение!D70)","v":0}]
[null,{"$f":"IF(COUNTA(B$2:B70)>COUNTIF(INDEX(База,,2),$H$3),\"\",INDEX(База,MATCH($H$3,INDEX(База,,2),)+COUNTA(B$2:B70)-1,COUNTA($B70:B70)))","v":""},{"$f":"IF(COUNTA(C$2:C70)>COUNTIF(INDEX(База,,2),$H$3),\"\",INDEX(База,MATCH($H$3,INDEX(База,,2),)+COUNTA(C$2:C70)-1,COUNTA($B70:C70)))","v":""},{"$f":"IF(COUNTA(D$2:D70)>COUNTIF(INDEX(База,,2),$H$3),\"\",INDEX(База,MATCH($H$3,INDEX(База,,2),)+COUNTA(D$2:D70)-1,COUNTA($B70:D70)))","v":""},{"$f":"SUMIF(Показатели!$A$3:$A$63,Упорядоченное_расположение!D71,Показатели!$B$3:$B$63)","v":0},{"$f":"COUNTIF(Показатели!$A$3:$A$63,Упорядоченное_расположение!D71)","v":0}]
[null,{"$f":"IF(COUNTA(B$2:B71)>COUNTIF(INDEX(База,,2),$H$3),\"\",INDEX(База,MATCH($H$3,INDEX(База,,2),)+COUNTA(B$2:B71)-1,COUNTA($B71:B71)))","v":""},{"$f":"IF(COUNTA(C$2:C71)>COUNTIF(INDEX(База,,2),$H$3),\"\",INDEX(База,MATCH($H$3,INDEX(База,,2),)+COUNTA(C$2:C71)-1,COUNTA($B71:C71)))","v":""},{"$f":"IF(COUNTA(D$2:D71)>COUNTIF(INDEX(База,,2),$H$3),\"\",INDEX(База,MATCH($H$3,INDEX(База,,2),)+COUNTA(D$2:D71)-1,COUNTA($B71:D71)))","v":""},{"$f":"SUMIF(Показатели!$A$3:$A$63,Упорядоченное_расположение!D72,Показатели!$B$3:$B$63)","v":0},{"$f":"COUNTIF(Показатели!$A$3:$A$63,Упорядоченное_расположение!D72)","v":0}]
[null,{"$f":"IF(COUNTA(B$2:B72)>COUNTIF(INDEX(База,,2),$H$3),\"\",INDEX(База,MATCH($H$3,INDEX(База,,2),)+COUNTA(B$2:B72)-1,COUNTA($B72:B72)))","v":""},{"$f":"IF(COUNTA(C$2:C72)>COUNTIF(INDEX(База,,2),$H$3),\"\",INDEX(База,MATCH($H$3,INDEX(База,,2),)+COUNTA(C$2:C72)-1,COUNTA($B72:C72)))","v":""},{"$f":"IF(COUNTA(D$2:D72)>COUNTIF(INDEX(База,,2),$H$3),\"\",INDEX(База,MATCH($H$3,INDEX(База,,2),)+COUNTA(D$2:D72)-1,COUNTA($B72:D72)))","v":""},{"$f":"SUMIF(Показатели!$A$3:$A$63,Упорядоченное_расположение!D73,Показатели!$B$3:$B$63)","v":0},{"$f":"COUNTIF(Показатели!$A$3:$A$63,Упорядоченное_расположение!D73)","v":0}]
[null,{"$f":"IF(COUNTA(B$2:B73)>COUNTIF(INDEX(База,,2),$H$3),\"\",INDEX(База,MATCH($H$3,INDEX(База,,2),)+COUNTA(B$2:B73)-1,COUNTA($B73:B73)))","v":""},{"$f":"IF(COUNTA(C$2:C73)>COUNTIF(INDEX(База,,2),$H$3),\"\",INDEX(База,MATCH($H$3,INDEX(База,,2),)+COUNTA(C$2:C73)-1,COUNTA($B73:C73)))","v":""},{"$f":"IF(COUNTA(D$2:D73)>COUNTIF(INDEX(База,,2),$H$3),\"\",INDEX(База,MATCH($H$3,INDEX(База,,2),)+COUNTA(D$2:D73)-1,COUNTA($B73:D73)))","v":""},{"$f":"SUMIF(Показатели!$A$3:$A$63,Упорядоченное_расположение!D74,Показатели!$B$3:$B$63)","v":0},{"$f":"COUNTIF(Показатели!$A$3:$A$63,Упорядоченное_расположение!D74)","v":0}]
[null,{"$f":"IF(COUNTA(B$2:B74)>COUNTIF(INDEX(База,,2),$H$3),\"\",INDEX(База,MATCH($H$3,INDEX(База,,2),)+COUNTA(B$2:B74)-1,COUNTA($B74:B74)))","v":""},{"$f":"IF(COUNTA(C$2:C74)>COUNTIF(INDEX(База,,2),$H$3),\"\",INDEX(База,MATCH($H$3,INDEX(База,,2),)+COUNTA(C$2:C74)-1,COUNTA($B74:C74)))","v":""},{"$f":"IF(COUNTA(D$2:D74)>COUNTIF(INDEX(База,,2),$H$3),\"\",INDEX(База,MATCH($H$3,INDEX(База,,2),)+COUNTA(D$2:D74)-1,COUNTA($B74:D74)))","v":""},{"$f":"SUMIF(Показатели!$A$3:$A$63,Упорядоченное_расположение!D75,Показатели!$B$3:$B$63)","v":0},{"$f":"COUNTIF(Показатели!$A$3:$A$63,Упорядоченное_расположение!D75)","v":0}]
[null,{"$f":"IF(COUNTA(B$2:B75)>COUNTIF(INDEX(База,,2),$H$3),\"\",INDEX(База,MATCH($H$3,INDEX(База,,2),)+COUNTA(B$2:B75)-1,COUNTA($B75:B75)))","v":""},{"$f":"IF(COUNTA(C$2:C75)>COUNTIF(INDEX(База,,2),$H$3),\"\",INDEX(База,MATCH($H$3,INDEX(База,,2),)+COUNTA(C$2:C75)-1,COUNTA($B75:C75)))","v":""},{"$f":"IF(COUNTA(D$2:D75)>COUNTIF(INDEX(База,,2),$H$3),\"\",INDEX(База,MATCH($H$3,INDEX(База,,2),)+COUNTA(D$2:D75)-1,COUNTA($B75:D75)))","v":""},{"$f":"SUMIF(Показатели!$A$3:$A$63,Упорядоченное_расположение!D76,Показатели!$B$3:$B$63)","v":0},{"$f":"COUNTIF(Показатели!$A$3:$A$63,Упорядоченное_расположение!D76)","v":0}]
[null,{"$f":"IF(COUNTA(B$2:B76)>COUNTIF(INDEX(База,,2),$H$3),\"\",INDEX(База,MATCH($H$3,INDEX(База,,2),)+COUNTA(B$2:B76)-1,COUNTA($B76:B76)))","v":""},{"$f":"IF(COUNTA(C$2:C76)>COUNTIF(INDEX(База,,2),$H$3),\"\",INDEX(База,MATCH($H$3,INDEX(База,,2),)+COUNTA(C$2:C76)-1,COUNTA($B76:C76)))","v":""},{"$f":"IF(COUNTA(D$2:D76)>COUNTIF(INDEX(База,,2),$H$3),\"\",INDEX(База,MATCH($H$3,INDEX(База,,2),)+COUNTA(D$2:D76)-1,COUNTA($B76:D76)))","v":""},{"$f":"SUMIF(Показатели!$A$3:$A$63,Упорядоченное_расположение!D77,Показатели!$B$3:$B$63)","v":0},{"$f":"COUNTIF(Показатели!$A$3:$A$63,Упорядоченное_расположение!D77)","v":0}]
[null,{"$f":"IF(COUNTA(B$2:B77)>COUNTIF(INDEX(База,,2),$H$3),\"\",INDEX(База,MATCH($H$3,INDEX(База,,2),)+COUNTA(B$2:B77)-1,COUNTA($B77:B77)))","v":""},{"$f":"IF(COUNTA(C$2:C77)>COUNTIF(INDEX(База,,2),$H$3),\"\",INDEX(База,MATCH($H$3,INDEX(База,,2),)+COUNTA(C$2:C77)-1,COUNTA($B77:C77)))","v":""},{"$f":"IF(COUNTA(D$2:D77)>COUNTIF(INDEX(База,,2),$H$3),\"\",INDEX(База,MATCH($H$3,INDEX(База,,2),)+COUNTA(D$2:D77)-1,COUNTA($B77:D77)))","v":""},{"$f":"SUMIF(Показатели!$A$3:$A$63,Упорядоченное_расположение!D78,Показатели!$B$3:$B$63)","v":0},{"$f":"COUNTIF(Показатели!$A$3:$A$63,Упорядоченное_расположение!D78)","v":0}]
[null,{"$f":"IF(COUNTA(B$2:B78)>COUNTIF(INDEX(База,,2),$H$3),\"\",INDEX(База,MATCH($H$3,INDEX(База,,2),)+COUNTA(B$2:B78)-1,COUNTA($B78:B78)))","v":""},{"$f":"IF(COUNTA(C$2:C78)>COUNTIF(INDEX(База,,2),$H$3),\"\",INDEX(База,MATCH($H$3,INDEX(База,,2),)+COUNTA(C$2:C78)-1,COUNTA($B78:C78)))","v":""},{"$f":"IF(COUNTA(D$2:D78)>COUNTIF(INDEX(База,,2),$H$3),\"\",INDEX(База,MATCH($H$3,INDEX(База,,2),)+COUNTA(D$2:D78)-1,COUNTA($B78:D78)))","v":""},{"$f":"SUMIF(Показатели!$A$3:$A$63,Упорядоченное_расположение!D79,Показатели!$B$3:$B$63)","v":0},{"$f":"COUNTIF(Показатели!$A$3:$A$63,Упорядоченное_расположение!D79)","v":0}]
[]
[null,"Наибольшая сумма закупок была достигнута оргназизацией:",null,null,{"$f":"INDEX(B3:E61,MATCH(MAX(E3:E61),E3:E61,0),3)","v":"Организация 55"}]